[Event "23rd Alekhine FIDE 2019"]
[Site "Voronezh"]
[Date "2019.06.15"]
[Round "4.1"]
[White "Eliseev, Mikhail"]
[Black "Popov, Maksim"]
[Result "0-1"]
[ECO "A45"]
[WhiteElo "2169"]
[BlackElo "2014"]
[Annotator "ChessBase"]
[PlyCount "116"]
[EventDate "2019.06.12"]
[EventType "swiss"]
[EventCountry "RUS"]
[SourceTitle "playchess.com"]
[Source "ChessBase"]
[SourceQuality "1"]
[TimeControl "40/5400+30:1800+30"]

1. d4 {[%emt 0:00:00]} Nf6 {[%emt 0:00:00]} 2. Bf4 {[%emt 0:00:10]} e6 {[%emt 0:00:00]} 3. e3 {[%emt 0:00:26]} b6 {[%emt 0:00:08]} 4. h3 {[%emt 0:01:17]} Bb7 {[%emt 0:00:28]} 5. Nd2 {[%emt 0:00:22]} Bd6 {[%emt 0:05:31]} 6. Bxd6 {[%emt 0:05:16]} cxd6 {[%emt 0:00:08]} 7. Ngf3 {[%emt 0:00:05]} h6 {[%emt 0:00:17]} 8. Bd3 {[%emt 0:00:14]} Ba6 {[%emt 0:02:12]} 9. Bxa6 {[%emt 0:05:26]} Nxa6 {[%emt 0:00:07]} 10. e4 {[%emt 0:00:30]} Qc7 {[%emt 0:02:13]} 11. c3 {[%emt 0:00:13]} Qb7 {[%emt 0:03:45]} 12. Qe2 {[%emt 0:00:49]} b5 {[%emt 0:01:26]} 13. e5 {[%emt 0:07:19]} dxe5 {[%emt 0:00:07]} 14. dxe5 {[%emt 0:00:02]} Nd5 {[%emt 0:00:12]} 15. Ne4 {[%emt 0:00:04]} O-O {[%emt 0:00:14]} 16. Nd6 {[%emt 0:00:15]} Qb6 {[%emt 0:02:20]} 17. Qxb5 {[%emt 0:03:55]} Rab8 {[%emt 0:06:54]} 18. Qxb6 {[%emt 0:02:02]} Rxb6 {[%emt 0:00:07]} 19. Nc4 {[%emt 0:22:52]} Rbb8 {[%emt 0:00:06]} 20. O-O {[%emt 0:00:17]} Nc5 {[%emt 0:01:24]} 21. Rfd1 {[%emt 0:02:15]} f6 {[%emt 0:01:25]} 22. Rac1 {[%emt 0:03:30]} Na4 {[%emt 0:08:24]} 23. Rd2 {[%emt 0:02:07]} Rfc8 {[%emt 0:00:56]} 24. Nd6 {[%emt 0:04:23]} Rc6 {[%emt 0:00:14]} 25. c4 {[%emt 0:01:33]} fxe5 {[%emt 0:08:40]} 26. b3 {[%emt 0:02:22]} Rxd6 {[%emt 0:07:33]} 27. bxa4 {[%emt 0:05:17]} Rc8 {[%emt 0:13:14]} 28. Rcc2 {[%emt 0:05:33]} Rdc6 {[%emt 0:03:55]} 29. Nxe5 {[%emt 0:00:25]} R6c7 {[%emt 0:00:04]} 30. Rb2 {[%emt 0:01:49]} Nb6 {[%emt 0:06:35]} 31. a5 {[%emt 0:01:49]} Na4 {[%emt 0:01:03]} 32. Rb1 {[%emt 0:03:43]} Nc5 {[%emt 0:00:41]} 33. Rbd1 {[%emt 0:00:07]} Rd8 {[%emt 0:00:11]} 34. Rd4 {[%emt 0:00:13]} Kf8 {[%emt 0:00:59]} 35. Rf4+ {[%emt 0:01:04]} Kg8 {[%emt 0:00:37]} 36. h4 {[%emt 0:00:13]} Nb7 {[%emt 0:08:31]} 37. a6 {[%emt 0:02:50]} Nc5 {[%emt 0:00:13]} 38. Rfd4 {[%emt 0:00:08]} h5 {[%emt 0:04:47]} 39. f3 {[%emt 0:03:46]} Kf8 {[%emt 0:01:18]} 40. g4 {[%emt 0:00:07]} hxg4 {[%emt 0:02:25]} 41. fxg4 {[%emt 0:30:49]} Ke7 {[%emt 0:30:40]} 42. Rf1 {[%emt 0:00:50]} d5 {[%emt 0:00:06]} 43. Rdf4 {[%emt 0:05:35]} Nxa6 {[%emt 0:01:04]} 44. Rf7+ {[%emt 0:00:53]} Kd6 {[%emt 0:00:06]} 45. cxd5 {[%emt 0:00:13]} Kxe5 {[%emt 0:00:23]} 46. Re1+ {[%emt 0:00:45]} Kd4 {[%emt 0:03:04]} 47. dxe6 {[%emt 0:00:37]} Rxf7 {[%emt 0:00:16]} 48. exf7 {[%emt 0:00:07]} Rf8 {[%emt 0:00:27]} 49. Re7 {[%emt 0:00:10]} Nb8 {[%emt 0:00:47]} 50. Re8 {[%emt 0:01:42]} Nd7 {[%emt 0:00:05]} 51. g5 {[%emt 0:00:30]} Rxf7 {[%emt 0:00:08]} 52. Kg2 {[%emt 0:00:29]} Ne5 {[%emt 0:00:21]} 53. Re6 {[%emt 0:00:56]} Rf4 {[%emt 0:01:16]} 54. Kg3 {[%emt 0:00:22]} Rf3+ {[%emt 0:00:08]} 55. Kg2 {[%emt 0:00:04]} Ra3 {[%emt 0:00:53]} 56. h5 {[%emt 0:00:43]} Nd3 {[%emt 0:00:32]} 57. h6 {[%emt 0:03:40]} Nf4+ {[%emt 0:00:06]} 58. Kh2 {[%emt 0:01:31]} Rh3+ {[%emt 0:00:06]} 0-1

[Event "23rd Alekhine FIDE 2019"]
[Site "Voronezh"]
[Date "2019.06.15"]
[Round "4.2"]
[White "Skvortsov, Andrei"]
[Black "Stepochkin, Fedor"]
[Result "1/2-1/2"]
[ECO "C01"]
[WhiteElo "2123"]
[BlackElo "1929"]
[Annotator "ChessBase"]
[PlyCount "110"]
[EventDate "2019.06.12"]
[EventType "swiss"]
[EventCountry "RUS"]
[SourceTitle "playchess.com"]
[Source "ChessBase"]
[SourceQuality "1"]
[TimeControl "40/5400+30:1800+30"]

1. e4 {[%emt 0:04:55]} e6 {[%emt 0:00:00]} 2. d4 {[%emt 0:00:11]} d5 {[%emt 0:00:00]} 3. exd5 {[%emt 0:00:09]} exd5 {[%emt 0:00:00]} 4. Nf3 {[%emt 0:00:03]} Nf6 {[%emt 0:00:17]} 5. Bd3 {[%emt 0:00:05]} Bd6 {[%emt 0:01:24]} 6. Qe2+ {[%emt 0:01:24]} Qe7 {[%emt 0:02:50]} 7. Qxe7+ {[%emt 0:00:07]} Kxe7 {[%emt 0:01:57]} 8. O-O {[%emt 0:00:16]} Re8 {[%emt 0:00:13]} 9. Bg5 {[%emt 0:00:32]} h6 {[%emt 0:02:29]} 10. Bh4 {[%emt 0:00:07]} g5 {[%emt 0:09:13]} 11. Bg3 {[%emt 0:00:23]} Nc6 {[%emt 0:01:35]} 12. Re1+ {[%emt 0:00:55]} Be6 {[%emt 0:00:52]} 13. c3 {[%emt 0:00:41]} Bxg3 {[%emt 0:02:46]} 14. hxg3 {[%emt 0:00:01]} Kf8 {[%emt 0:01:04]} 15. Na3 {[%emt 0:00:02]} a6 {[%emt 0:00:16]} 16. Nd2 {[%emt 0:00:05]} Ne7 {[%emt 0:01:46]} 17. f3 {[%emt 0:00:01]} Nf5 {[%emt 0:02:48]} 18. Kf2 {[%emt 0:00:04]} Nd6 {[%emt 0:00:31]} 19. Rh1 {[%emt 0:00:45]} Kg7 {[%emt 0:00:08]} 20. g4 {[%emt 0:00:06]} Nd7 {[%emt 0:02:12]} 21. Rae1 {[%emt 0:02:16]} f5 {[%emt 0:00:58]} 22. gxf5 {[%emt 0:00:12]} Bxf5 {[%emt 0:00:09]} 23. Bxf5 {[%emt 0:00:05]} Nxf5 {[%emt 0:00:06]} 24. Nc2 {[%emt 0:00:06]} c5 {[%emt 0:08:19]} 25. Nb3 {[%emt 0:00:02]} b6 {[%emt 0:01:35]} 26. Rd1 {[%emt 0:00:05]} c4 {[%emt 0:00:28]} 27. Nd2 {[%emt 0:00:24]} b5 {[%emt 0:00:37]} 28. Nb4 {[%emt 0:00:21]} Nf6 {[%emt 0:01:02]} 29. Rhe1 {[%emt 0:00:08]} a5 {[%emt 0:08:43]} 30. Nc6 {[%emt 0:00:09]} Ra6 {[%emt 0:06:49]} 31. Rxe8 {[%emt 0:02:32]} Nxe8 {[%emt 0:00:07]} 32. Re1 {[%emt 0:00:16]} Nf6 {[%emt 0:03:32]} 33. Nd8 {[%emt 0:01:02]} b4 {[%emt 0:01:15]} 34. g4 {[%emt 0:01:53]} bxc3 {[%emt 0:02:59]} 35. bxc3 {[%emt 0:00:01]} Nh4 {[%emt 0:00:23]} 36. Re7+ {[%emt 0:01:25]} Kf8 {[%emt 0:00:13]} 37. Re6 {[%emt 0:00:28]} Rxe6 {[%emt 0:00:29]} 38. Nxe6+ {[%emt 0:00:02]} Ke7 {[%emt 0:00:24]} 39. Nc5 {[%emt 0:00:02]} Kd6 {[%emt 0:00:23]} 40. Nb7+ {[%emt 0:00:48]} Kc7 {[%emt 0:00:34]} 41. Nxa5 {[%emt 0:30:06]} Kb6 {[%emt 0:30:49]} 42. Naxc4+ {[%emt 0:00:01]} dxc4 {[%emt 0:00:11]} 43. Nxc4+ {[%emt 0:00:02]} Kc6 {[%emt 0:03:53]} 44. Ne5+ {[%emt 0:00:24]} Kd5 {[%emt 0:00:14]} 45. a4 {[%emt 0:00:06]} Ne8 {[%emt 0:00:36]} 46. a5 {[%emt 0:00:05]} Nc7 {[%emt 0:00:11]} 47. Kg3 {[%emt 0:00:11]} Na6 {[%emt 0:06:09]} 48. f4 {[%emt 0:00:30]} Ke4 {[%emt 0:00:06]} 49. f5 {[%emt 0:00:16]} Nxf5+ {[%emt 0:00:05]} 50. gxf5 {[%emt 0:00:09]} Kxf5 {[%emt 0:00:04]} 51. Nd3 {[%emt 0:03:22]} h5 {[%emt 0:01:43]} 52. c4 {[%emt 0:03:17]} h4+ {[%emt 0:01:38]} 53. Kh3 {[%emt 0:00:01]} Ke4 {[%emt 0:00:40]} 54. Nc5+ {[%emt 0:00:00]} Kxd4 {[%emt 0:00:09]} 55. Nxa6 {[%emt 0:00:13]} Kxc4 {[%emt 0:00:04]} 1/2-1/2

[Event "23rd Alekhine FIDE 2019"]
[Site "Voronezh"]
[Date "2019.06.15"]
[Round "4.3"]
[White "Tatarintsev, Egor"]
[Black "Mikhnenko, Alexander"]
[Result "1-0"]
[ECO "B10"]
[WhiteElo "2001"]
[BlackElo "2052"]
[Annotator "NA"]
[PlyCount "115"]
[EventDate "2019.06.12"]
[EventType "swiss"]
[EventCountry "RUS"]
[SourceTitle "playchess.com"]
[Source "ChessBase"]
[SourceQuality "1"]
[TimeControl "40/5400+30:1800+30"]

1. e4 {[%emt 0:00:00]} c6 {[%emt 0:00:27]} 2. Nc3 {[%emt 0:00:00]} d5 {[%emt 0:00:01]} 3. Nf3 {[%emt 0:00:00]} dxe4 {[%emt 0:00:01]} 4. Nxe4 {[%emt 0:00:10]} Nd7 {[%emt 0:00:01]} 5. d4 {[%emt 0:04:43]} Ngf6 {[%emt 0:00:02]} 6. Ng3 {[%emt 0:05:02]} e6 {[%emt 0:00:11]} 7. Bd3 {[%emt 0:00:25]} Be7 {[%emt 0:00:28]} 8. O-O {[%emt 0:04:59]} c5 {[%emt 0:02:03]} 9. c3 {[%emt 0:04:16]} O-O {[%emt 0:01:10]} 10. Qe2 {[%emt 0:04:28]} b6 {[%emt 0:07:59]} 11. Rd1 {[%emt 0:01:17]} Qc7 {[%emt 0:09:26]} 12. Bg5 {[%emt 0:19:22]} Bb7 {[%emt 0:04:09]} 13. Ne4 $11 {[%emt 0:04:12]} Nd5 {[%emt 0:11:26]} 14. Bxe7 {[%emt 0:10:32]} Nxe7 {[%emt 0:00:02]} 15. Neg5 {[%emt 0:00:14]} Nf6 {[%emt 0:24:21]} 16. Ne5 {[%emt 0:05:27]} h6 {[%emt 0:00:55]} 17. Ne4 {[%emt 0:00:49]} Nxe4 {[%emt 0:01:26]} 18. Bxe4 {[%emt 0:00:02]} Bxe4 {[%emt 0:06:00]} 19. Qxe4 {[%emt 0:00:02]} cxd4 {[%emt 0:03:13]} 20. Rxd4 {[%emt 0:02:10]} Rad8 {[%emt 0:06:05]} 21. Rad1 {[%emt 0:01:27]} Rxd4 {[%emt 0:00:44]} 22. Rxd4 {[%emt 0:03:24]} Rd8 {[%emt 0:00:51]} 23. Rxd8+ {[%emt 0:00:54]} Qxd8 {[%emt 0:00:01]} 24. Qd3 {[%emt 0:00:02]} Qc7 {[%emt 0:01:03]} 25. Nf3 {[%emt 0:01:55]} f6 {[%emt 0:04:32]} 26. g3 {[%emt 0:03:55]} Kf7 {[%emt 0:00:06]} 27. Nd2 {[%emt 0:01:05]} Nc6 {[%emt 0:05:32]} 28. Nc4 {[%emt 0:00:29]} Ke7 {[%emt 0:00:50]} 29. a4 {[%emt 0:02:54]} Ne5 {[%emt 0:07:32]} 30. Nxe5 {[%emt 0:00:07]} Qxe5 {[%emt 0:00:03]} 31. Qf3 {[%emt 0:01:26]} Kd6 {[%emt 0:03:56]} 32. Qb7 {[%emt 0:01:43]} g5 {[%emt 0:03:49]} 33. h3 {[%emt 0:00:36]} Qa5 {[%emt 0:02:37]} 34. Qb8+ {[%emt 0:05:31]} Kd5 {[%emt 0:00:39]} 35. Qd8+ {[%emt 0:00:08]} Ke4 {[%emt 0:02:42]} 36. Qd4+ {[%emt 0:01:55]} Kf5 {[%emt 0:00:07]} 37. g4+ {[%emt 0:00:01]} Kg6 {[%emt 0:00:08]} 38. Qe4+ {[%emt 0:00:01]} Kg7 {[%emt 0:00:16]} 39. Qb7+ {[%emt 0:00:38]} Kg6 {[%emt 0:00:12]} 40. Qc8 {[%emt 0:00:08]} Kg7 {[%emt 0:00:41]} 41. Qd7+ {[%emt 0:30:07]} Kg6 {[%emt 0:31:41]} 42. Qe8+ {[%emt 0:01:47]} Kg7 {[%emt 0:00:10]} 43. Qe7+ {[%emt 0:00:06]} Kg6 {[%emt 0:00:40]} 44. Qxe6 {[%emt 0:02:54]} Kg7 {[%emt 0:00:18]} 45. Qe7+ {[%emt 0:02:59]} Kg6 {[%emt 0:00:17]} 46. Qe4+ {[%emt 0:00:04]} Kg7 {[%emt 0:00:09]} 47. Qe7+ {[%emt 0:01:11]} Kg6 {[%emt 0:00:03]} 48. Qe8+ {[%emt 0:00:31]} Kg7 {[%emt 0:00:01]} 49. Qb5 {[%emt 0:00:35]} Qxb5 {[%emt 0:00:06]} 50. axb5 {[%emt 0:00:01]} Kf7 {[%emt 0:00:13]} 51. c4 {[%emt 0:00:24]} Ke6 {[%emt 0:00:04]} 52. b4 {[%emt 0:00:50]} Ke5 {[%emt 0:00:11]} 53. c5 {[%emt 0:00:00]} bxc5 {[%emt 0:03:17]} 54. bxc5 {[%emt 0:00:00]} Kd5 {[%emt 0:00:46]} 55. c6 {[%emt 0:00:00]} Kd6 {[%emt 0:00:39]} 56. Kg2 {[%emt 0:00:00]} a5 {[%emt 0:00:05]} 57. bxa6 {[%emt 0:00:00]} Kxc6 {[%emt 0:00:03]} 58. Kf3 {[%emt 0:00:29]} 1-0

[Event "23rd Alekhine FIDE 2019"]
[Site "Voronezh"]
[Date "2019.06.15"]
[Round "4.4"]
[White "Ashutosh, Kumar"]
[Black "Natarov, Ilya"]
[Result "1/2-1/2"]
[ECO "A11"]
[WhiteElo "1852"]
[BlackElo "2045"]
[Annotator "NA"]
[PlyCount "96"]
[EventDate "2019.06.12"]
[EventType "swiss"]
[EventCountry "RUS"]
[SourceTitle "playchess.com"]
[Source "ChessBase"]
[SourceQuality "1"]
[TimeControl "40/5400+30:1800+30"]

1. c4 {[%emt 0:00:00]} c6 {[%emt 0:02:33]} 2. g3 {[%emt 0:00:15]} d5 {[%emt 0:00:13]} 3. Nf3 {[%emt 0:00:04]} Nf6 {[%emt 0:00:07]} 4. Bg2 {[%emt 0:00:20]} Bf5 {[%emt 0:01:43]} 5. cxd5 {[%emt 0:01:20]} cxd5 {[%emt 0:00:05]} 6. Qb3 {[%emt 0:00:13]} Nc6 {[%emt 0:00:59] A11: English Opening: 1...c6} 7. Qxb7 {[%emt 0:05:26]} Bd7 {[%emt 0:00:06]} 8. Qb3 {[%emt 0:01:17]} Rb8 {[%emt 0:04:12]} 9. Qd1 {[%emt 0:00:27]} e5 {[%emt 0:00:29]} 10. O-O {[%emt 0:00:35]} e4 {[%emt 0:06:17]} 11. Ne1 $1 {[%emt 0:01:08]} Bc5 {[%emt 0:00:12]} (11... h5 $1 $11) 12. d3 {[%emt 0:07:00]} O-O $146 {[%emt 0:06:37]} ({Predecessor:} 12... h5 13. Nc3 h4 14. dxe4 hxg3 15. hxg3 Bh3 16. Bxh3 Rxh3 17. Kg2 Qc8 18. Nd3 Rh5 19. Rh1 Rxh1 20. Qxh1 {1-0 (20) Dubov,D (2648)-Goganov,A (2627) St Petersburg 2016}) 13. Nc3 {[%emt 0:00:53]} Re8 {[%emt 0:08:46]} 14. Bg5 {[%emt 0:01:58]} e3 {[%emt 0:02:50]} 15. fxe3 {[%emt 0:06:43]} Bxe3+ {[%emt 0:01:02]} 16. Bxe3 {[%emt 0:00:23]} Rxe3 {[%emt 0:00:04]} 17. Nc2 {[%emt 0:06:49]} Re7 {[%emt 0:11:10]} 18. Rxf6 {[%emt 0:18:16]} gxf6 {[%emt 0:00:28]} 19. Nxd5 {[%emt 0:00:18] Double Attack} Re5 {[%emt 0:03:16]} 20. d4 {[%emt 0:02:49]} Rg5 $16 {[%emt 0:01:40]} 21. b3 {[%emt 0:04:01]} Bg4 {[%emt 0:01:18]} 22. Nce3 {[%emt 0:05:06]} Be6 {[%emt 0:06:55]} 23. Rc1 {[%emt 0:16:17]} Bxd5 {[%emt 0:01:49]} 24. Nxd5 {[%emt 0:01:38]} Rxd5 {[%emt 0:01:27]} 25. Rxc6 {[%emt 0:02:53]} Rxd4 {[%emt 0:00:11]} 26. Qc2 {[%emt 0:00:20]} Rd1+ {[%emt 0:02:21]} 27. Bf1 {[%emt 0:03:00]} Qd4+ {[%emt 0:00:36]} 28. Kg2 {[%emt 0:00:19]} Rd2 {[%emt 0:02:57]} 29. Qf5 {[%emt 0:01:43]} Qd5+ {[%emt 0:01:37]} 30. Qxd5 {[%emt 0:00:58]} Rxd5 {[%emt 0:00:07]} 31. Rxf6 {[%emt 0:00:33]} Ra5 {[%emt 0:00:03]} 32. e4 {[%emt 0:02:45]} Rxa2+ {[%emt 0:00:19]} 33. Kh3 {[%emt 0:00:17]} Kg7 {[%emt 0:03:15]} 34. Rf5 {[%emt 0:00:15]} Rb6 {[%emt 0:04:21]} 35. Bc4 {[%emt 0:01:11]} Rf6 {[%emt 0:06:27]} 36. Rg5+ {[%emt 0:01:20]} Kh6 {[%emt 0:03:37]} 37. Rc5 {[%emt 0:02:17]} Rff2 {[%emt 0:00:19]} 38. Kg4 {[%emt 0:00:46]} Rf6 {[%emt 0:12:24]} 39. Rh5+ {[%emt 0:03:02]} Kg7 {[%emt 0:00:09]} 40. h4 {[%emt 0:01:05]} Ra1 {[%emt 0:03:34]} 41. Rc5 {[%emt 0:31:18]} Rg1 {[%emt 0:31:56]} 42. h5 {[%emt 0:00:38]} Ra1 {[%emt 0:00:47]} 43. e5 {[%emt 0:01:15]} Rf2 {[%emt 0:00:46]} 44. Rc7 {[%emt 0:00:37]} Ra5 {[%emt 0:00:42]} 45. e6 {[%emt 0:00:33]} Kh6 {[%emt 0:00:03]} 46. exf7 {[%emt 0:01:02]} Rg5+ {[%emt 0:00:10]} 47. Kh3 {[%emt 0:00:13]} Rxh5+ {[%emt 0:00:48]} 48. Kg4 {[%emt 0:00:10]} Ra5 1/2-1/2

[Event "23rd Alekhine FIDE 2019"]
[Site "Voronezh"]
[Date "2019.06.15"]
[Round "4.5"]
[White "Ponomariov, Timur"]
[Black "Vasiljev, Ilya"]
[Result "0-1"]
[ECO "C13"]
[WhiteElo "2172"]
[BlackElo "1762"]
[Annotator "ChessBase"]
[PlyCount "84"]
[EventDate "2019.06.12"]
[EventType "swiss"]
[EventCountry "RUS"]
[SourceTitle "playchess.com"]
[Source "ChessBase"]
[SourceQuality "1"]
[TimeControl "40/5400+30:1800+30"]

1. d4 {[%emt 0:00:00]} Nf6 {[%emt 0:00:00]} 2. Nc3 {[%emt 0:00:00]} e6 {[%emt 0:00:00]} 3. e4 {[%emt 0:10:43]} d5 {[%emt 0:00:11]} 4. Bg5 {[%emt 0:00:06]} Be7 {[%emt 0:00:06]} 5. Nf3 {[%emt 0:09:40]} Nxe4 {[%emt 0:06:40]} 6. Nxe4 {[%emt 0:02:15]} dxe4 {[%emt 0:01:53]} 7. Bxe7 {[%emt 0:00:02]} Qxe7 {[%emt 0:00:10]} 8. Nd2 {[%emt 0:00:38]} b6 {[%emt 0:01:16]} 9. Nxe4 {[%emt 0:00:21]} Bb7 {[%emt 0:00:13]} 10. Bb5+ {[%emt 0:00:52]} Nd7 {[%emt 0:00:28]} 11. Qe2 {[%emt 0:01:44]} O-O {[%emt 0:02:27]} 12. O-O {[%emt 0:00:31]} Nf6 {[%emt 0:03:26]} 13. f3 {[%emt 0:07:29]} Rfd8 {[%emt 0:06:31]} 14. Rad1 {[%emt 0:00:08]} Nxe4 {[%emt 0:15:07]} 15. fxe4 {[%emt 0:00:05]} c5 {[%emt 0:00:06]} 16. c3 {[%emt 0:01:36]} a6 {[%emt 0:01:53]} 17. Bc4 {[%emt 0:00:59]} b5 {[%emt 0:01:33]} 18. Bb3 {[%emt 0:00:16]} Rd7 {[%emt 0:00:42]} 19. Qe3 {[%emt 0:03:14]} cxd4 {[%emt 0:04:49]} 20. cxd4 {[%emt 0:00:01]} Rad8 {[%emt 0:01:45]} 21. Rd2 {[%emt 0:00:57]} Qd6 {[%emt 0:08:45]} 22. h4 {[%emt 0:10:59]} Qb6 {[%emt 0:05:42]} 23. Rdf2 {[%emt 0:01:44]} a5 {[%emt 0:03:57]} 24. a3 {[%emt 0:00:21]} Ba6 {[%emt 0:00:36]} 25. Rf3 {[%emt 0:03:32]} a4 {[%emt 0:00:24]} 26. Bc2 {[%emt 0:03:47]} Qxd4 {[%emt 0:00:32]} 27. Qxd4 {[%emt 0:00:39]} Rxd4 {[%emt 0:00:03]} 28. Rxf7 {[%emt 0:00:14]} b4 {[%emt 0:00:06]} 29. R1f4 {[%emt 0:12:52]} b3 {[%emt 0:00:09]} 30. Bb1 {[%emt 0:00:08]} Rd1+ {[%emt 0:00:12]} 31. Kh2 {[%emt 0:00:10]} Rxb1 {[%emt 0:00:15]} 32. Ra7 {[%emt 0:00:05]} Bd3 {[%emt 0:00:52]} 33. Rg4 {[%emt 0:00:50]} g6 {[%emt 0:01:16]} 34. h5 {[%emt 0:00:05]} Be2 {[%emt 0:04:40]} 35. Rg5 {[%emt 0:01:05]} Bxh5 {[%emt 0:01:51]} 36. g4 {[%emt 0:01:20]} Rxb2+ {[%emt 0:00:16]} 37. Kg3 {[%emt 0:00:11]} Rd3+ {[%emt 0:00:16]} 38. Kf4 {[%emt 0:00:06]} Rf2+ {[%emt 0:00:08]} 39. Ke5 {[%emt 0:00:10]} h6 {[%emt 0:00:05]} 40. Rxg6+ {[%emt 0:03:53]} Bxg6 {[%emt 0:00:06]} 41. g5 {[%emt 0:30:06]} hxg5 {[%emt 0:30:11]} 42. Rf7 {[%emt 0:00:05]} Rxf7 {[%emt 0:00:14]} 0-1

[Event "23rd Alekhine FIDE 2019"]
[Site "Voronezh"]
[Date "2019.06.15"]
[Round "4.6"]
[White "Katkov, Vitaly"]
[Black "Kolomensky, Vladimir"]
[Result "1/2-1/2"]
[ECO "A46"]
[WhiteElo "2001"]
[BlackElo "2134"]
[Annotator "ChessBase"]
[PlyCount "82"]
[EventDate "2019.06.12"]
[EventType "swiss"]
[EventCountry "RUS"]
[SourceTitle "playchess.com"]
[Source "ChessBase"]
[SourceQuality "1"]
[TimeControl "40/5400+30:1800+30"]

1. d4 {[%emt 0:02:24]} Nf6 {[%emt 0:00:00]} 2. Nf3 {[%emt 0:00:38]} e6 {[%emt 0:00:00]} 3. Bg5 {[%emt 0:01:51]} c5 {[%emt 0:00:00]} 4. c3 {[%emt 0:01:23]} cxd4 {[%emt 0:06:40]} 5. cxd4 {[%emt 0:05:40]} Qb6 {[%emt 0:13:28]} 6. Qc2 {[%emt 0:18:55]} Nc6 {[%emt 0:01:02]} 7. Bxf6 {[%emt 0:02:57]} gxf6 {[%emt 0:00:20]} 8. e3 {[%emt 0:00:11]} d5 {[%emt 0:03:59]} 9. Nc3 {[%emt 0:06:29]} Bd7 {[%emt 0:00:53]} 10. Be2 {[%emt 0:00:06]} Rc8 {[%emt 0:05:37]} 11. O-O {[%emt 0:03:54]} f5 {[%emt 0:06:33]} 12. a3 {[%emt 0:05:21]} Qd8 {[%emt 0:05:36]} 13. Rfc1 {[%emt 0:03:56]} Bd6 {[%emt 0:00:52]} 14. b4 {[%emt 0:02:13]} O-O {[%emt 0:04:47]} 15. Qb3 {[%emt 0:06:55]} Ne7 {[%emt 0:24:42]} 16. g3 {[%emt 0:10:57]} Qc7 {[%emt 0:09:10]} 17. Kg2 {[%emt 0:10:59]} Qb8 {[%emt 0:00:35]} 18. Nb5 {[%emt 0:00:45]} Bxb5 19. Bxb5 {[%emt 0:00:07]} Rxc1 {[%emt 0:04:02]} 20. Rxc1 {[%emt 0:00:06]} Rc8 {[%emt 0:00:06]} 21. Qb2 {[%emt 0:00:57]} Rc7 {[%emt 0:01:52]} 22. Ne1 {[%emt 0:01:04]} Qc8 {[%emt 0:02:16]} 23. Nd3 {[%emt 0:02:56]} Kg7 {[%emt 0:00:03]} 24. Ba4 {[%emt 0:01:05]} b6 {[%emt 0:01:17]} 25. Rxc7 {[%emt 0:01:31]} Qxc7 {[%emt 0:00:03]} 26. Qc2 {[%emt 0:00:14]} Qb7 {[%emt 0:01:32]} 27. Bb5 {[%emt 0:02:16]} a6 {[%emt 0:01:18]} 28. Ba4 {[%emt 0:00:08]} Qa8 {[%emt 0:00:18]} 29. Qb2 {[%emt 0:00:53]} a5 {[%emt 0:00:22]} 30. Bb5 {[%emt 0:00:24]} Kg8 {[%emt 0:02:12]} 31. bxa5 {[%emt 0:01:15]} Qxa5 {[%emt 0:00:11]} 32. a4 {[%emt 0:00:21]} Kg7 {[%emt 0:00:42]} 33. Qc2 {[%emt 0:00:21]} Kg8 {[%emt 0:01:05]} 34. h4 {[%emt 0:00:40]} Kg7 {[%emt 0:00:17]} 35. Be8 {[%emt 0:01:03]} Qa8 {[%emt 0:00:42]} 36. Bb5 {[%emt 0:00:45]} Ng8 {[%emt 0:02:04]} 37. Qc6 {[%emt 0:01:19]} Qb8 {[%emt 0:00:35]} 38. Qe8 {[%emt 0:01:16]} Qc7 {[%emt 0:00:36]} 39. Qd7 {[%emt 0:00:24]} Qb8 {[%emt 0:00:55]} 40. Qe8 {[%emt 0:00:31]} Qc7 {[%emt 0:00:04]} 41. Qd7 {[%emt 0:30:05]} Qb8 1/2-1/2